[Event "4NCL Div 1 2018-19"]
[Site "Daventry"]
[Date "2019.01.13"]
[Round "4"]
[White "Rendle, Thomas E"]
[Black "Weaving, Richard"]
[Result "1/2-1/2"]
[ECO "C55"]
[WhiteElo "2377"]
[BlackElo "2330"]
[Annotator "NA"]
[PlyCount "41"]
[EventDate "2019.01.12"]
[EventCountry "GBR"]
[SourceTitle "playchess.com"]
[Source "ChessBase"]
[SourceQuality "1"]
[TimeControl "40"]

1. e4 {[%emt 0:00:37]} e5 {[%emt 0:08:24]} 2. Nf3 {[%emt 0:00:35]} Nc6 {[%emt 0:00:08]} 3. Bc4 {[%emt 0:00:05]} Nf6 {[%emt 0:00:13]} 4. d3 {[%emt 0:00:13]} Be7 {[%emt 0:01:50]} 5. O-O {[%emt 0:04:16]} O-O {[%emt 0:00:22]} 6. Re1 {[%emt 0:00:03]} d6 {[%emt 0:03:17]} 7. a4 {[%emt 0:00:18]} h6 {[%emt 0:02:01]} 8. a5 {[%emt 0:06:25]} a6 {[%emt 0:00:36]} 9. h3 {[%emt 0:05:20]} Nh7 {[%emt 0:07:02]} 10. Nc3 {[%emt 0:05:47]} Ng5 {[%emt 0:07:03]} 11. Nd5 {[%emt 0:00:20]} Nxf3+ {[%emt 0:04:48]} 12. Qxf3 {[%emt 0:00:08]} Nd4 {[%emt 0:06:17]} 13. Qd1 {[%emt 0:01:51]} Bg5 {[%emt 0:05:30]} 14. f4 {[%emt 0:19:36]} exf4 {[%emt 0:05:18]} 15. Nxf4 {[%emt 0:01:32]} Ne6 {[%emt 0:16:20]} 16. Nxe6 {[%emt 0:10:19]} Bxe6 {[%emt 0:01:11]} 17. Bxe6 {[%emt 0:02:52]} fxe6 {[%emt 0:00:15]} 18. Qg4 {[%emt 0:00:22]} Qf6 {[%emt 0:01:37]} 19. Bxg5 {[%emt 0:01:03]} hxg5 {[%emt 0:03:40]} 20. Rf1 {[%emt 0:04:36]} Qe5 {[%emt 0:01:16]} 21. c3 {[%emt 0:06:55]} 1/2-1/2

[Event "4NCL Div 1 2018-19"]
[Site "Daventry"]
[Date "2019.01.13"]
[Round "4"]
[White "Gourlay, Iain"]
[Black "Tyomkyn, Mikhail"]
[Result "1/2-1/2"]
[ECO "A16"]
[WhiteElo "2351"]
[BlackElo "2111"]
[Annotator "NA"]
[PlyCount "29"]
[EventDate "2019.01.12"]
[EventCountry "GBR"]
[SourceTitle "playchess.com"]
[Source "ChessBase"]
[SourceQuality "1"]
[TimeControl "40"]

1. c4 {[%emt 0:00:00]} g6 {[%emt 0:00:00]} 2. g3 {[%emt 0:00:00]} Bg7 {[%emt 0:00:00]} 3. Bg2 {[%emt 0:00:00]} Nf6 {[%emt 0:00:00]} 4. Nc3 {[%emt 0:00:00]} O-O {[%emt 0:00:00]} 5. Rb1 {[%emt 0:00:00]} c6 {[%emt 0:00:00]} 6. e4 {[%emt 0:00:00]} d5 {[%emt 0:00:00]} 7. cxd5 {[%emt 0:00:00]} cxd5 {[%emt 0:00:00]} 8. exd5 {[%emt 0:00:00]} Na6 {[%emt 0:00:00]} 9. b4 {[%emt 0:00:00]} Bf5 {[%emt 0:00:00]} 10. d3 {[%emt 0:00:00]} Rc8 {[%emt 0:00:00]} 11. Nge2 {[%emt 0:00:00]} Nc7 {[%emt 0:00:00]} 12. Nf4 {[%emt 0:00:00]} Nh5 {[%emt 0:00:00]} 13. Nfe2 {[%emt 0:00:00]} Nf6 {[%emt 0:00:00]} 14. Nf4 {[%emt 0:00:00]} Nh5 {[%emt 0:00:00]} 15. Nfe2 {[%emt 0:00:00]} 1/2-1/2

[Event "4NCL Div 1 2018-19"]
[Site "Daventry"]
[Date "2019.01.13"]
[Round "4"]
[White "Kulon, Klaudia"]
[Black "Wadsworth, Matthew J"]
[Result "0-1"]
[ECO "A20"]
[WhiteElo "2347"]
[BlackElo "2373"]
[Annotator "NA"]
[PlyCount "94"]
[EventDate "2019.01.12"]
[EventCountry "GBR"]
[SourceTitle "playchess.com"]
[Source "ChessBase"]
[SourceQuality "1"]
[TimeControl "40"]

1. c4 {[%emt 0:00:00]} e5 {[%emt 0:00:00]} 2. g3 {[%emt 0:00:00]} h5 {[%emt 0:00:00]} 3. h4 {[%emt 0:00:00]} Nc6 {[%emt 0:00:00]} 4. Bg2 {[%emt 0:00:00]} Bc5 {[%emt 0:00:00]} 5. Nc3 {[%emt 0:00:00]} d6 {[%emt 0:00:00]} 6. Na4 {[%emt 0:00:00]} Bb6 {[%emt 0:00:00]} 7. Nxb6 {[%emt 0:00:00]} axb6 {[%emt 0:00:00]} 8. d3 {[%emt 0:00:00]} Nge7 {[%emt 0:00:00]} 9. e4 {[%emt 0:00:00]} Nd4 {[%emt 0:00:00]} 10. Nh3 {[%emt 0:00:00]} f6 {[%emt 0:00:00]} 11. O-O {[%emt 0:00:00]} Be6 {[%emt 0:00:00]} 12. Be3 {[%emt 0:00:00]} Qd7 {[%emt 0:00:00]} 13. Kh2 {[%emt 0:00:00]} Nec6 {[%emt 0:00:00]} 14. a3 {[%emt 0:00:00]} b5 {[%emt 0:00:00]} 15. Rc1 {[%emt 0:00:00]} Bg4 {[%emt 0:00:00]} 16. f3 {[%emt 0:00:00]} Be6 {[%emt 0:00:00]} 17. Rc3 {[%emt 0:00:00]} bxc4 {[%emt 0:00:00]} 18. dxc4 {[%emt 0:00:00]} b5 {[%emt 0:00:00]} 19. cxb5 {[%emt 0:00:00]} Nxb5 {[%emt 0:00:00]} 20. Rc1 {[%emt 0:00:00]} Ncd4 {[%emt 0:00:00]} 21. Ng1 {[%emt 0:00:00]} Nb3 {[%emt 0:00:00]} 22. Rc2 {[%emt 0:00:00]} N5d4 {[%emt 0:00:00]} 23. Rc3 {[%emt 0:00:00]} Rb8 {[%emt 0:00:00]} 24. Bh3 {[%emt 0:00:00]} c5 {[%emt 0:00:00]} 25. f4 {[%emt 0:00:00]} Bg4 {[%emt 0:00:00]} 26. Qd3 {[%emt 0:00:00]} O-O {[%emt 0:00:00]} 27. f5 {[%emt 0:00:00]} Qb5 {[%emt 0:00:00]} 28. Qb1 {[%emt 0:00:00]} Rf7 {[%emt 0:00:00]} 29. Rf2 {[%emt 0:00:00]} Bxh3 {[%emt 0:00:00]} 30. Nxh3 {[%emt 0:00:00]} Rfb7 {[%emt 0:00:00]} 31. Qd1 {[%emt 0:00:00]} Qc6 {[%emt 0:00:00]} 32. Qxh5 {[%emt 0:00:00]} Qxe4 {[%emt 0:00:00]} 33. g4 {[%emt 0:00:00]} Nf3+ {[%emt 0:00:00]} 34. Kg3 {[%emt 0:00:00]} Nbd4 {[%emt 0:00:00]} 35. b4 {[%emt 0:00:00]} c4 {[%emt 0:00:00]} 36. Bxd4 {[%emt 0:00:00]} Nxd4 {[%emt 0:00:00]} 37. Kh2 {[%emt 0:00:00]} Ne2 {[%emt 0:00:00]} 38. Rcf3 {[%emt 0:00:00]} c3 {[%emt 0:00:00]} 39. g5 {[%emt 0:00:00]} c2 {[%emt 0:00:00]} 40. Rf1 {[%emt 0:00:00]} c1=Q {[%emt 0:00:00]} 41. Rxc1 {[%emt 0:00:00]} Nxc1 {[%emt 0:00:00]} 42. g6 {[%emt 0:00:00]} Qc4 {[%emt 0:00:00]} 43. Ng5 {[%emt 0:00:00]} fxg5 {[%emt 0:00:00]} 44. hxg5 {[%emt 0:00:00]} Ne2 {[%emt 0:00:00]} 45. Qh7+ {[%emt 0:00:00]} Kf8 {[%emt 0:00:00]} 46. f6 {[%emt 0:00:00]} Nf4 {[%emt 0:00:00]} 47. Rf2 {[%emt 0:00:00]} Qg8 {[%emt 0:00:00]} 0-1

[Event "4NCL Div 1 2018-19"]
[Site "Daventry"]
[Date "2019.01.13"]
[Round "4"]
[White "Kilpatrick, Callum"]
[Black "Maciol, Ryszard"]
[Result "1-0"]
[ECO "C00"]
[WhiteElo "2344"]
[BlackElo "2163"]
[Annotator "NA"]
[PlyCount "99"]
[EventDate "2019.01.12"]
[EventCountry "GBR"]
[SourceTitle "playchess.com"]
[Source "ChessBase"]
[SourceQuality "1"]
[TimeControl "40"]

1. e4 {[%emt 0:00:00]} e6 {[%emt 0:00:00]} 2. d3 {[%emt 0:00:00]} d5 {[%emt 0:00:00]} 3. Nd2 {[%emt 0:00:00]} Nf6 {[%emt 0:00:00]} 4. Ngf3 {[%emt 0:00:00]} Be7 {[%emt 0:00:00]} 5. g3 {[%emt 0:00:00]} c5 {[%emt 0:00:00]} 6. Bg2 {[%emt 0:00:00]} Nc6 {[%emt 0:00:00]} 7. O-O {[%emt 0:00:00]} Qc7 {[%emt 0:00:00]} 8. Re1 {[%emt 0:00:00]} dxe4 {[%emt 0:00:00]} 9. dxe4 {[%emt 0:00:00]} O-O {[%emt 0:00:00]} 10. c3 {[%emt 0:00:00]} Rd8 {[%emt 0:00:00]} 11. Qc2 {[%emt 0:00:00]} b6 {[%emt 0:00:00]} 12. Nc4 Ba6 {[%emt 0:00:00]} 13. Bf1 {[%emt 0:00:00]} b5 {[%emt 0:00:00]} 14. Bf4 {[%emt 0:00:00]} Qb7 {[%emt 0:00:00]} 15. Ncd2 {[%emt 0:00:00]} h6 {[%emt 0:00:00]} 16. h4 {[%emt 0:00:00]} Rd7 {[%emt 0:00:00]} 17. a4 {[%emt 0:00:00]} bxa4 {[%emt 0:00:00]} 18. Bxa6 {[%emt 0:00:00]} Qxa6 {[%emt 0:00:00]} 19. Rxa4 {[%emt 0:00:00]} Qb7 {[%emt 0:00:00]} 20. Rea1 {[%emt 0:00:00]} Nh5 {[%emt 0:00:00]} 21. Be3 {[%emt 0:00:00]} Qc7 {[%emt 0:00:00]} 22. Nc4 {[%emt 0:00:00]} Nf6 {[%emt 0:00:00]} 23. Bf4 {[%emt 0:00:00]} Qc8 {[%emt 0:00:00]} 24. Nb6 {[%emt 0:00:00]} Qb7 {[%emt 0:00:00]} 25. Nxa8 {[%emt 0:00:00]} Qxa8 {[%emt 0:00:00]} 26. Ne5 {[%emt 0:00:00]} Nxe5 {[%emt 0:00:00]} 27. Bxe5 {[%emt 0:00:00]} Ng4 {[%emt 0:00:00]} 28. Bf4 {[%emt 0:00:00]} e5 {[%emt 0:00:00]} 29. Bc1 {[%emt 0:00:00]} Bd8 {[%emt 0:00:00]} 30. Qe2 {[%emt 0:00:00]} Nf6 {[%emt 0:00:00]} 31. Be3 {[%emt 0:00:00]} Bb6 {[%emt 0:00:00]} 32. Qc4 {[%emt 0:00:00]} Qd8 {[%emt 0:00:00]} 33. Kg2 {[%emt 0:00:00]} Ng4 {[%emt 0:00:00]} 34. Re1 {[%emt 0:00:00]} Qf6 {[%emt 0:00:00]} 35. Qe2 {[%emt 0:00:00]} Nxe3+ {[%emt 0:00:00]} 36. Qxe3 {[%emt 0:00:00]} c4 {[%emt 0:00:00]} 37. Qe2 {[%emt 0:00:00]} Qd8 {[%emt 0:00:00]} 38. Rxc4 {[%emt 0:00:00]} Kh7 {[%emt 0:00:00]} 39. Qf3 {[%emt 0:00:00]} g6 {[%emt 0:00:00]} 40. Rc6 {[%emt 0:00:00]} Kg7 {[%emt 0:00:00]} 41. h5 {[%emt 0:00:00]} Qg5 {[%emt 0:00:00]} 42. Rd1 {[%emt 0:00:00]} Rxd1 {[%emt 0:00:00]} 43. Qxd1 {[%emt 0:00:00]} gxh5 {[%emt 0:00:00]} 44. Qd6 {[%emt 0:00:00]} h4 {[%emt 0:00:00]} 45. Rc8 {[%emt 0:00:00]} hxg3 {[%emt 0:00:00]} 46. Qf8+ {[%emt 0:00:00]} Kg6 {[%emt 0:00:00]} 47. Qg8+ {[%emt 0:00:00]} Kf6 {[%emt 0:00:00]} 48. Rc6+ {[%emt 0:00:00]} Ke7 {[%emt 0:00:00]} 49. Qxg5+ {[%emt 0:00:00]} hxg5 {[%emt 0:00:00]} 50. Kxg3 {[%emt 0:00:00]} 1-0

[Event "4NCL Div 1 2018-19"]
[Site "Daventry"]
[Date "2019.01.13"]
[Round "4"]
[White "Sowray, Peter J"]
[Black "Chow, Samuel"]
[Result "1-0"]
[ECO "D97"]
[WhiteElo "2344"]
[BlackElo "2331"]
[Annotator "NA"]
[PlyCount "76"]
[EventDate "2019.01.12"]
[EventCountry "GBR"]
[SourceTitle "playchess.com"]
[Source "ChessBase"]
[SourceQuality "1"]
[TimeControl "40"]

1. d4 {[%emt 0:00:00]} Nf6 {[%emt 0:00:00]} 2. c4 {[%emt 0:00:00]} g6 {[%emt 0:00:00]} 3. Nc3 {[%emt 0:00:00]} d5 {[%emt 0:00:00]} 4. Nf3 {[%emt 0:00:00]} Bg7 {[%emt 0:00:00]} 5. Qb3 {[%emt 0:00:00]} dxc4 {[%emt 0:00:00]} 6. Qxc4 {[%emt 0:00:00]} O-O {[%emt 0:00:00]} 7. e4 {[%emt 0:00:00]} Be6 {[%emt 0:00:00]} 8. Qd3 {[%emt 0:00:00]} c5 {[%emt 0:00:00]} 9. d5 {[%emt 0:00:00]} Bc8 {[%emt 0:00:00]} 10. Be3 {[%emt 0:00:00]} b6 {[%emt 0:00:00]} 11. Qd2 {[%emt 0:00:00]} e6 {[%emt 0:00:00]} 12. Bc4 {[%emt 0:00:00]} exd5 {[%emt 0:00:00]} 13. exd5 {[%emt 0:00:00]} Re8 {[%emt 0:00:00]} 14. O-O {[%emt 0:00:00]} Ne4 {[%emt 0:00:00]} 15. Nxe4 {[%emt 0:00:00]} Rxe4 {[%emt 0:00:00]} 16. Bb3 {[%emt 0:00:00]} c4 {[%emt 0:00:00]} 17. Bg5 {[%emt 0:00:00]} f6 {[%emt 0:00:00]} 18. Bc2 {[%emt 0:00:00]} Re8 {[%emt 0:00:00]} 19. Bf4 {[%emt 0:00:00]} Bb7 {[%emt 0:00:00]} 20. Ba4 {[%emt 0:00:00]} Re4 {[%emt 0:00:00]} 21. Rae1 {[%emt 0:00:00]} f5 {[%emt 0:00:00]} 22. d6 {[%emt 0:00:00]} Na6 {[%emt 0:00:00]} 23. Rxe4 {[%emt 0:00:00]} fxe4 {[%emt 0:00:00]} 24. Ng5 {[%emt 0:00:00]} h6 {[%emt 0:00:00]} 25. Ne6 {[%emt 0:00:00]} Qf6 {[%emt 0:00:00]} 26. Nxg7 {[%emt 0:00:00]} Kxg7 {[%emt 0:00:00]} 27. Bxh6+ {[%emt 0:00:00]} Kh7 {[%emt 0:00:00]} 28. Bg5 {[%emt 0:00:00]} Qf7 {[%emt 0:00:00]} 29. d7 {[%emt 0:00:00]} Nc5 {[%emt 0:00:00]} 30. d8=Q {[%emt 0:00:00]} Rxd8 {[%emt 0:00:00]} 31. Qxd8 {[%emt 0:00:00]} Nxa4 {[%emt 0:00:00]} 32. Bf6 {[%emt 0:00:00]} g5 {[%emt 0:00:00]} 33. Rd1 {[%emt 0:00:00]} Nc5 {[%emt 0:00:00]} 34. Rd6 {[%emt 0:00:00]} e3 {[%emt 0:00:00]} 35. fxe3 {[%emt 0:00:00]} Ne6 {[%emt 0:00:00]} 36. Qd7 {[%emt 0:00:00]} Qxd7 {[%emt 0:00:00]} 37. Rxd7+ {[%emt 0:00:00]} Kg6 {[%emt 0:00:00]} 38. Rxb7 {[%emt 0:00:00]} Kxf6 {[%emt 0:00:00]} 1-0

[Event "4NCL Div 1 2018-19"]
[Site "Daventry"]
[Date "2019.01.13"]
[Round "4"]
[White "Kalavannan, Koby"]
[Black "Batchelor, Peter J"]
[Result "1-0"]
[ECO "A44"]
[WhiteElo "2339"]
[BlackElo "2316"]
[Annotator "NA"]
[PlyCount "105"]
[EventDate "2019.01.12"]
[EventCountry "GBR"]
[SourceTitle "playchess.com"]
[Source "ChessBase"]
[SourceQuality "1"]
[TimeControl "40"]

1. d4 {[%emt 0:00:00]} c5 {[%emt 0:00:00]} 2. d5 {[%emt 0:00:00]} e5 {[%emt 0:00:00]} 3. e4 {[%emt 0:00:00]} d6 {[%emt 0:00:00]} 4. Nc3 {[%emt 0:00:00]} Be7 {[%emt 0:00:00]} 5. Nf3 {[%emt 0:00:00]} Bg4 {[%emt 0:00:00]} 6. a4 {[%emt 0:00:00]} a6 {[%emt 0:00:00]} 7. a5 {[%emt 0:00:00]} Nd7 {[%emt 0:00:00]} 8. Be3 {[%emt 0:00:00]} Bxf3 {[%emt 0:00:00]} 9. Qxf3 {[%emt 0:00:00]} Bg5 {[%emt 0:00:00]} 10. Nd1 {[%emt 0:00:00]} h6 {[%emt 0:00:00]} 11. b3 {[%emt 0:00:00]} Qf6 {[%emt 0:00:00]} 12. Nb2 {[%emt 0:00:00]} Bxe3 {[%emt 0:00:00]} 13. Qxe3 {[%emt 0:00:00]} Qf4 {[%emt 0:00:00]} 14. Qxf4 {[%emt 0:00:00]} exf4 {[%emt 0:00:00]} 15. Nc4 {[%emt 0:00:00]} Ke7 {[%emt 0:00:00]} 16. g3 {[%emt 0:00:00]} Ngf6 {[%emt 0:00:00]} 17. gxf4 {[%emt 0:00:00]} Nxe4 {[%emt 0:00:00]} 18. Bg2 {[%emt 0:00:00]} Nc3 {[%emt 0:00:00]} 19. Kd2 {[%emt 0:00:00]} Nb5 {[%emt 0:00:00]} 20. Rae1+ {[%emt 0:00:00]} Kf8 {[%emt 0:00:00]} 21. Re3 {[%emt 0:00:00]} Re8 {[%emt 0:00:00]} 22. Rhe1 {[%emt 0:00:00]} Nf6 {[%emt 0:00:00]} 23. Nb6 {[%emt 0:00:00]} Rxe3 {[%emt 0:00:00]} 24. Rxe3 {[%emt 0:00:00]} g5 {[%emt 0:00:00]} 25. c3 {[%emt 0:00:00]} gxf4 {[%emt 0:00:00]} 26. Re1 {[%emt 0:00:00]} Rg8 {[%emt 0:00:00]} 27. Bh3 {[%emt 0:00:00]} Rg5 {[%emt 0:00:00]} 28. Bc8 {[%emt 0:00:00]} Rg2 {[%emt 0:00:00]} 29. Bxb7 {[%emt 0:00:00]} Rxf2+ {[%emt 0:00:00]} 30. Re2 {[%emt 0:00:00]} Ne4+ {[%emt 0:00:00]} 31. Ke1 {[%emt 0:00:00]} Rxe2+ {[%emt 0:00:00]} 32. Kxe2 {[%emt 0:00:00]} Nexc3+ {[%emt 0:00:00]} 33. Kf3 {[%emt 0:00:00]} Nd4+ {[%emt 0:00:00]} 34. Kxf4 {[%emt 0:00:00]} Nxb3 {[%emt 0:00:00]} 35. Nc4 {[%emt 0:00:00]} Ke7 {[%emt 0:00:00]} 36. Kg4 {[%emt 0:00:00]} Nd4 {[%emt 0:00:00]} 37. Ne3 {[%emt 0:00:00]} Kf6 {[%emt 0:00:00]} 38. Bxa6 {[%emt 0:00:00]} Ke5 {[%emt 0:00:00]} 39. Bb7 {[%emt 0:00:00]} f5+ {[%emt 0:00:00]} 40. Kh3 {[%emt 0:00:04]} Ndb5 {[%emt 0:00:00]} 41. a6 {[%emt 0:00:00]} Ne4 {[%emt 0:00:00]} 42. Nc2 {[%emt 0:00:00]} f4 {[%emt 0:00:00]} 43. Na3 {[%emt 0:00:00]} Nc7 {[%emt 0:00:00]} 44. a7 {[%emt 0:03:56]} Nc3 {[%emt 0:00:00]} 45. Nc4+ {[%emt 0:00:00]} Kd4 {[%emt 0:00:00]} 46. Nxd6 {[%emt 0:00:00]} N3xd5 {[%emt 0:00:00]} 47. Ne8 {[%emt 0:00:00]} c4 {[%emt 0:00:00]} 48. Bxd5 {[%emt 0:00:00]} c3 {[%emt 0:00:00]} 49. Nxc7 {[%emt 0:00:00]} c2 {[%emt 0:00:00]} 50. a8=Q {[%emt 0:00:00]} c1=Q {[%emt 0:00:00]} 51. Qa4+ {[%emt 0:00:00]} Ke5 {[%emt 0:00:00]} 52. Qe8+ {[%emt 0:00:00]} Kd4 {[%emt 0:00:00]} 53. Qe4+ {[%emt 0:00:00] Kxd5 [%emt 00:00:55]} 1-0

[Event "4NCL Div 1 2018-19"]
[Site "Daventry"]
[Date "2019.01.13"]
[Round "4"]
[White "Van de Griendt, Jan Willem"]
[Black "Pigott, John C"]
[Result "1/2-1/2"]
[ECO "E05"]
[WhiteElo "2327"]
[BlackElo "2387"]
[Annotator "NA"]
[PlyCount "47"]
[EventDate "2019.01.12"]
[EventCountry "GBR"]
[SourceTitle "playchess.com"]
[Source "ChessBase"]
[SourceQuality "1"]
[TimeControl "40"]

1. d4 {[%emt 0:00:00]} Nf6 {[%emt 0:00:00]} 2. c4 {[%emt 0:00:00]} e6 {[%emt 0:00:00]} 3. Nf3 {[%emt 0:00:00]} d5 {[%emt 0:00:00]} 4. g3 {[%emt 0:00:00]} Be7 {[%emt 0:00:00]} 5. Bg2 {[%emt 0:00:00]} O-O {[%emt 0:00:00]} 6. O-O {[%emt 0:00:00]} dxc4 {[%emt 0:00:00]} 7. Qc2 {[%emt 0:00:00]} b6 {[%emt 0:00:00]} 8. Qxc4 {[%emt 0:00:00]} Bb7 {[%emt 0:00:00]} 9. Rd1 {[%emt 0:00:00]} Nbd7 {[%emt 0:00:00]} 10. Bg5 {[%emt 0:00:00]} c5 {[%emt 0:00:00]} 11. dxc5 {[%emt 0:00:00]} Qc8 {[%emt 0:00:00]} 12. c6 {[%emt 0:00:00]} Qxc6 {[%emt 0:00:00]} 13. Qxc6 {[%emt 0:00:00]} Bxc6 {[%emt 0:00:00]} 14. Nc3 {[%emt 0:00:00]} h6 {[%emt 0:00:00]} 15. Bf4 {[%emt 0:00:00]} Rfd8 {[%emt 0:00:00]} 16. Nd4 {[%emt 0:00:00]} Bxg2 {[%emt 0:00:00]} 17. Kxg2 {[%emt 0:00:00]} Rac8 {[%emt 0:00:00]} 18. Ndb5 {[%emt 0:00:00]} a6 {[%emt 0:00:00]} 19. Bd6 {[%emt 0:00:00]} Kf8 {[%emt 0:00:00]} 20. Bxe7+ {[%emt 0:00:00]} Kxe7 {[%emt 0:00:00]} 21. Nd4 {[%emt 0:00:00]} Ne5 {[%emt 0:00:00]} 22. Rac1 {[%emt 0:00:00]} b5 {[%emt 0:00:00]} 23. e3 {[%emt 0:00:00]} Rc7 {[%emt 0:00:00]} 24. a4 {[%emt 0:00:00]} 1/2-1/2

[Event "4NCL Div 1 2018-19"]
[Site "Daventry"]
[Date "2019.01.13"]
[Round "4"]
[White "McKay, Roderick M"]
[Black "Manley, Jon P"]
[Result "1/2-1/2"]
[ECO "C28"]
[WhiteElo "2318"]
[BlackElo "2166"]
[Annotator "NA"]
[PlyCount "63"]
[EventDate "2019.01.12"]
[EventCountry "GBR"]
[SourceTitle "playchess.com"]
[Source "ChessBase"]
[SourceQuality "1"]
[TimeControl "40"]

1. e4 {[%emt 0:00:00]} e5 {[%emt 0:00:00]} 2. Bc4 {[%emt 0:00:00]} Nf6 {[%emt 0:00:00]} 3. d3 {[%emt 0:00:00]} Nc6 {[%emt 0:00:00]} 4. Nc3 {[%emt 0:00:00]} Na5 {[%emt 0:00:00]} 5. Nge2 {[%emt 0:00:00]} d6 {[%emt 0:00:00]} 6. O-O {[%emt 0:00:00]} c6 {[%emt 0:00:00]} 7. a3 {[%emt 0:00:00]} Nxc4 {[%emt 0:00:00]} 8. dxc4 {[%emt 0:00:00]} Be7 {[%emt 0:00:00]} 9. Qd3 {[%emt 0:00:00]} Bg4 {[%emt 0:00:00]} 10. f3 {[%emt 0:00:00]} Be6 {[%emt 0:00:00]} 11. Bg5 {[%emt 0:00:00]} O-O {[%emt 0:00:00]} 12. b3 {[%emt 0:00:00]} Nh5 {[%emt 0:00:00]} 13. Bxe7 {[%emt 0:00:00]} Qxe7 {[%emt 0:00:00]} 14. Rad1 {[%emt 0:00:00]} Rad8 {[%emt 0:00:00]} 15. Qe3 {[%emt 0:00:00]} a6 {[%emt 0:00:00]} 16. a4 {[%emt 0:00:00]} g6 {[%emt 0:00:00]} 17. Rd2 {[%emt 0:00:00]} f5 {[%emt 0:21:17]} 18. exf5 {[%emt 0:00:00]} gxf5 {[%emt 0:00:00]} 19. f4 {[%emt 0:00:00]} Qf6 {[%emt 0:00:00]} 20. fxe5 {[%emt 0:00:00]} dxe5 {[%emt 0:00:00]} 21. Ne4 {[%emt 0:00:00]} Qg7 {[%emt 0:00:00]} 22. N4g3 {[%emt 0:00:00]} Nxg3 {[%emt 0:00:00]} 23. hxg3 {[%emt 0:00:00]} Rxd2 {[%emt 0:00:00]} 24. Qxd2 {[%emt 0:00:00]} Kh8 {[%emt 0:00:00]} 25. Rd1 {[%emt 0:00:00]} Rg8 {[%emt 0:00:00]} 26. Qd6 {[%emt 0:00:00]} Bc8 {[%emt 0:00:00]} 27. Rd2 {[%emt 0:00:00]} f4 {[%emt 0:00:00]} 28. Nc3 {[%emt 0:00:00]} f3 {[%emt 0:00:00]} 29. Ne4 {[%emt 0:00:00]} Bf5 {[%emt 0:00:00]} 30. Nf6 {[%emt 0:00:00]} Qxg3 {[%emt 0:00:00]} 31. Nxg8 {[%emt 0:00:00]} Qe1+ {[%emt 0:00:00]} 32. Kh2 {[%emt 0:00:00]} 1/2-1/2

[Event "4NCL Div 1 2018-19"]
[Site "Daventry"]
[Date "2019.01.13"]
[Round "4"]
[White "Ciuksyte, Dagne"]
[Black "Quinn, John M"]
[Result "1/2-1/2"]
[ECO "B44"]
[WhiteElo "2297"]
[BlackElo "2123"]
[Annotator "NA"]
[PlyCount "79"]
[EventDate "2019.01.12"]
[EventCountry "GBR"]
[SourceTitle "playchess.com"]
[Source "ChessBase"]
[SourceQuality "1"]
[TimeControl "40"]

1. e4 {[%emt 0:00:00]} c5 {[%emt 0:00:00]} 2. Nf3 {[%emt 0:00:00]} e6 {[%emt 0:00:00]} 3. d4 {[%emt 0:00:00]} cxd4 {[%emt 0:00:00]} 4. Nxd4 {[%emt 0:00:00]} Nc6 {[%emt 0:00:00]} 5. Nb5 {[%emt 0:00:00]} d6 {[%emt 0:00:00]} 6. c4 {[%emt 0:00:00]} a6 {[%emt 0:00:00]} 7. N5c3 {[%emt 0:00:00]} Nf6 {[%emt 0:00:00]} 8. Be2 {[%emt 0:00:00]} Be7 {[%emt 0:00:00]} 9. O-O {[%emt 0:00:00]} O-O {[%emt 0:00:00]} 10. Be3 {[%emt 0:00:00]} b6 {[%emt 0:00:00]} 11. Na3 {[%emt 0:00:00]} Bb7 {[%emt 0:00:00]} 12. Rc1 {[%emt 0:00:00]} Re8 {[%emt 0:00:00]} 13. Qb3 {[%emt 0:00:00]} Nd7 {[%emt 0:00:00]} 14. Rfd1 {[%emt 0:00:00]} Nc5 {[%emt 0:00:00]} 15. Qc2 {[%emt 0:00:00]} Bf6 {[%emt 0:00:00]} 16. f3 {[%emt 0:00:00]} Qe7 {[%emt 0:00:00]} 17. Qd2 {[%emt 0:00:00]} Rad8 {[%emt 0:00:00]} 18. Nc2 {[%emt 0:00:00]} a5 {[%emt 0:00:00]} 19. Bf1 {[%emt 0:00:00]} Nb4 20. Bd4 {[%emt 0:00:00]} Bg5 {[%emt 0:00:00]} 21. Be3 {[%emt 0:00:00]} Bf6 {[%emt 0:00:00]} 22. Nd4 {[%emt 0:00:00]} d5 {[%emt 0:00:00]} 23. cxd5 {[%emt 0:00:00]} exd5 {[%emt 0:00:00]} 24. Bb5 {[%emt 0:00:00]} dxe4 {[%emt 0:00:00]} 25. Bxe8 {[%emt 0:00:00]} Qxe8 {[%emt 0:00:00]} 26. fxe4 {[%emt 0:00:00]} Nbd3 {[%emt 0:00:00]} 27. e5 {[%emt 0:00:00]} Qxe5 {[%emt 0:00:00]} 28. Nf3 {[%emt 0:00:00]} Bxf3 {[%emt 0:00:00]} 29. gxf3 {[%emt 0:00:00]} Re8 {[%emt 0:00:00]} 30. Ne4 {[%emt 0:00:00]} Nxc1 {[%emt 0:00:00]} 31. Bxc5 {[%emt 0:00:00]} bxc5 {[%emt 0:00:00]} 32. Qxc1 {[%emt 0:00:00]} Qxb2 {[%emt 0:00:00]} 33. Qxc5 {[%emt 0:00:00]} Be5 {[%emt 0:00:00]} 34. Rd2 {[%emt 0:00:00]} Qb4 {[%emt 0:00:00]} 35. Qd5 {[%emt 0:00:00]} Bf4 {[%emt 0:00:00]} 36. Re2 {[%emt 0:00:00]} Qb6+ {[%emt 0:00:00]} 37. Kg2 {[%emt 0:00:00]} Rd8 {[%emt 0:00:00]} 38. Qc4 {[%emt 0:00:00]} h5 {[%emt 0:00:00]} 39. Ng3 {[%emt 0:00:00]} Bxg3 {[%emt 0:00:00]} 40. a3 {[%emt 0:00:24]} 1/2-1/2

[Event "4NCL Div 1 2018-19"]
[Site "Daventry"]
[Date "2019.01.13"]
[Round "4"]
[White "Kolbus, Dietmar"]
[Black "Walton, Alan J"]
[Result "1/2-1/2"]
[ECO "A98"]
[WhiteElo "2294"]
[BlackElo "2149"]
[Annotator "NA"]
[PlyCount "67"]
[EventDate "2019.01.12"]
[EventCountry "GBR"]
[SourceTitle "playchess.com"]
[Source "ChessBase"]
[SourceQuality "1"]
[TimeControl "40"]

1. c4 {[%emt 0:00:00]} f5 {[%emt 0:00:00]} 2. Nf3 {[%emt 0:00:00]} Nf6 {[%emt 0:00:00]} 3. g3 {[%emt 0:00:00]} d6 {[%emt 0:00:00]} 4. d4 {[%emt 0:00:00]} e6 {[%emt 0:00:00]} 5. Bg2 {[%emt 0:00:00]} Be7 {[%emt 0:00:00]} 6. O-O {[%emt 0:00:00]} O-O {[%emt 0:00:00]} 7. Qc2 {[%emt 0:00:00]} Qe8 {[%emt 0:00:00]} 8. Nc3 {[%emt 0:00:00]} Qh5 {[%emt 0:00:00]} 9. e4 {[%emt 0:00:00]} e5 {[%emt 0:00:00]} 10. dxe5 {[%emt 0:00:00]} dxe5 {[%emt 0:00:00]} 11. Nd5 {[%emt 0:00:00]} Nxd5 12. cxd5 {[%emt 0:00:00]} Bd6 {[%emt 0:10:26]} 13. exf5 {[%emt 0:00:00]} Bxf5 {[%emt 0:00:00]} 14. Qb3 {[%emt 0:00:00]} Nd7 {[%emt 0:00:00]} 15. Be3 {[%emt 0:00:00]} h6 {[%emt 0:00:00]} 16. Nh4 {[%emt 0:00:00]} b6 {[%emt 0:00:00]} 17. Nxf5 {[%emt 0:00:00]} Qxf5 {[%emt 0:00:00]} 18. Qc4 {[%emt 0:00:00]} Nf6 {[%emt 0:00:00]} 19. f3 {[%emt 0:00:00]} Rae8 {[%emt 0:00:00]} 20. Rae1 {[%emt 0:00:00]} Qh5 {[%emt 0:00:00]} 21. g4 {[%emt 0:00:00]} Qf7 {[%emt 0:00:00]} 22. Rd1 {[%emt 0:00:00]} e4 {[%emt 0:00:00]} 23. Bc1 {[%emt 0:00:00]} Qg6 {[%emt 0:00:00]} 24. h3 {[%emt 0:00:00]} exf3 {[%emt 0:00:00]} 25. Bxf3 {[%emt 0:00:00]} Nd7 {[%emt 0:00:00]} 26. Bg2 {[%emt 0:00:00]} Ne5 {[%emt 0:00:00]} 27. Rxf8+ {[%emt 0:00:00]} Rxf8 {[%emt 0:00:00]} 28. Qe4 {[%emt 0:00:00]} Bc5+ {[%emt 0:00:00]} 29. Kh1 {[%emt 0:00:00]} Qxe4 {[%emt 0:00:00]} 30. Bxe4 {[%emt 0:00:00]} Rf2 {[%emt 0:00:00]} 31. Bg2 {[%emt 0:00:00]} Re2 {[%emt 0:00:00]} 32. Bf1 {[%emt 0:00:00]} Rf2 {[%emt 0:00:00]} 33. Bg2 {[%emt 0:00:00]} Re2 {[%emt 0:00:00]} 34. Bf1 {[%emt 0:00:00]} 1/2-1/2